Cogmind - Beta 11.1 @@@ ROGUE MODE // 2022.06.13 @ 15:54:43 Player: ChromeKnight Result: Destroyed by as-95324 with Assembled Blade Performance ------------- Evolutions (0) 0 Regions Visited (2) 400 Robots Destroyed (7) 35 Value Destroyed (71) 71 Prototype IDs (0) 0 Alien Tech Used (0) 0 Bonus (0) 0 TOTAL SCORE: 506 Bonus ------- None Cogmind --------- Core Integrity 0/250 Matter 296/300 Energy 100/100 System Corruption 0% Temperature Cool (0) Movement Walking (190) Ox1 Location -10/Mines Parts ------- > --- POWER (1) -------- (None) > --- PROPULSION (2) --- Aluminum Leg > --- UTILITY (2) ------ Medium Storage Unit Light Armor Plating > --- WEAPON (2) ------- Light Assault Rifle Light Assault Rifle > --- INVENTORY (10) --- Flight Unit Flight Unit Flight Unit Flight Unit Heat Sink Heat Sink Makeshift Shrapnel Gun Rocket Launcher Mini Grenade Launcher Mining Claw Peak State ------------ > --- POWER ------------ (None) > --- PROPULSION ------- Aluminum Leg Aluminum Leg > --- UTILITY ---------- Small Storage Unit Light Armor Plating > --- WEAPON ----------- Light Assault Rifle Mini Grenade Launcher > --- INVENTORY -------- Flight Unit Flight Unit Heat Sink Heat Sink Light Assault Rifle Makeshift Shrapnel Gun Mini Grenade Launcher Mining Claw [Rating: 8] Favorites ----------- Power None Propulsion Aluminum Leg Leg Aluminum Leg Utility Light Armor Plating Storage Small Storage Unit Protection Light Armor Plating Weapon Light Assault Rifle Ballistic Gun Light Assault Rifle Launcher Mini Grenade Launcher Build | -11 -10 -10 ------- Run | Scr Mat Min Slots Evolved . | . . . Power . | . . . Propulsion . | . . . Utility . | . . . Weapon . | . . . Parts Attached 11 | 5 1 5 Power . | . . . Engine . | . . . Core . | . . . Reactor . | . . . Propulsion 2 | 2 . . Treads . | . . . Leg 2 | 2 . . Wheel . | . . . Hover . | . . . Flight . | . . . Utility 3 | 1 1 1 Device . | . . . Storage 2 | 1 . 1 Processor . | . . . Hackware . | . . . Protection 1 | . 1 . Artifact . | . . . Weapon 6 | 2 . 4 Energy Gun . | . . . Energy Cannon . | . . . Ballistic Gun 4 | 2 . 2 Ballistic Cannon . | . . . Launcher 2 | . . 2 Special Weapon . | . . . Impact Weapon . | . . . Slashing Weapon . | . . . Piercing Weapon . | . . . Special Melee Weapon . | . . . Unidentified Prototypes . | . . . Parts Lost 2 | . . 2 Power . | . . . Propulsion 1 | . . 1 Utility . | . . . Weapon 1 | . . 1 Highest Loss Streak 1 | . . 1 To Critical Strikes . | . . . Average Slot Usage (%) 79 | . 84 77 Leg 24 | . 28 23 Storage 14 | . 14 14 Protection 13 | . 13 14 Ballistic Gun 24 | . 28 22 Launcher 1 | . . 1 Naked Turns . | . . . Heaviest Build 15 | 7 10 15 Greatest Support 20 | 20 20 20 Greatest Overweight (x) 1 | . . 1 Average Overweight (x) . | . . . Largest Inventory Capacity 10 | 8 8 10 Average Capacity 8 | 6 8 9 Most Carried 10 | 1 8 10 Average Carried 7 | . 3 8 Final Capacity 10 | 8 8 10 Final Carried 10 | 1 8 10 Class Distribution -------------------- 100% | Mutant Dominant Class ---------------- Mutant | -10/Materials Mutant | -10/Mines Resources | -11 -10 -10 ----------- Run | Scr Mat Min Matter Collected 402 | 214 18 170 Remotely . | . . . Salvage Created 120 | . 18 102 Parts 12 | . 2 10 Haulers Intercepted . | . . . Recyclers Shooed 1 | . . 1 Parts Field Recycled . | . . . Retrieved Matter . | . . . Parts Self-Destructed . | . . . Prevented . | . . . Kills | -11 -10 -10 ------- Run | Scr Mat Min Combat Hostiles Destroyed 15 | . . 15 Guns 4 | . . 4 AOE 11 | . . 11 Classes Destroyed 3 | . 1 2 Worker 1 | . 1 . Swarmer 6 | . . 6 Assembled 9 | . . 9 Best Kill Streak 8 | . 1 8 Combat Bots Only 8 | . . 8 Max Kills in Single Turn 3 | . 1 3 Gunslinging . | . . . Exploded 3 | . . 3 Melee . | . . . Uniques/NPCs Destroyed . | . . . Combat | -11 -10 -10 -------- Run | Scr Mat Min Damage Taken 656 | . . 656 Core 255 | . . 255 Absorbed by Shields . | . . . Core Remaining (%) 100 | 100 . . Volleys Fired 28 | . 1 27 Largest 2 | . 2 2 Hottest 50 | . 40 50 Shots Fired 47 | . 2 45 Gun 40 | . 2 38 Cannon . | . . . Launcher 7 | . . 7 Special . | . . . Kinetic 40 | . 2 38 Thermal . | . . . Explosive 7 | . . 7 Electromagnetic . | . . . Robot Hit Streak 7 | . 1 7 Robot Miss Streak 7 | . 1 7 Penetration Max . | . . . Secondary Targets . | . . . Shots Hit Robots 28 | . 1 27 Core Hits 29 | . 1 28 Critical Kills . | . . . Critical Parts Destroyed . | . . . Critical Strikes . | . . . Melee Attacks . | . . . Impact . | . . . Slashing . | . . . Piercing . | . . . Sneak Attacks . | . . . Combat Hostiles . | . . . Follow-up Attacks . | . . . Damage Inflicted 1035 | . 10 1025 Guns 226 | . 10 216 Cannons . | . . . Explosions 800 | . . 800 Melee . | . . . Ramming 9 | . . 9 Kinetic 226 | . 10 216 Thermal . | . . . Explosive 800 | . . 800 Electromagnetic . | . . . Impact . | . . . Slashing . | . . . Piercing . | . . . Highest Corruption . | . . . Average Corruption . | . . . Corruption Purged . | . . . Corruption Blocked . | . . . Overload Shots . | . . . Overflow Damage 22 | . . 22 Projectiles . | . . . Explosions 22 | . . 22 Melee . | . . . Knockbacks 1 | . . 1 Impact 1 | . . 1 Kinetic . | . . . Secondary . | . . . Self-Inflicted Damage 182 | . . 182 Shots 6 | . . 6 Rammed . | . . . Targets Rammed 1 | . . 1 Kicked 1 | . . 1 Crushed . | . . . Highest Temperature 32 | . . 32 Average Temperature 10 | . . 10 Received Heat Transfer 100 | . . 100 Siege Activations . | . . . Robots Corrupted . | . . . Combat Hostiles . | . . . Parts Fried . | . . . Impact Corruptions . | . . . Robots Melted . | . . . Combat Hostiles . | . . . Parts Melted . | . . . Heat Transferred . | . . . Parts Sabotaged . | . . . Parts Stolen . | . . . Parts Stripped . | . . . Power Chain Reactions . | . . . Missiles Intercepted . | . . . Alert | -11 -10 -10 ------- Run | Scr Mat Min Peak Influence 281 | . 20 281 Initial 7 | . . 7 Average 108 | . 8 152 Maximum Alert Level 1 | . . 1 Low Security (%) 63 | 100 100 47 Level 1 36 | . . 52 Level 2 . | . . . Level 3 . | . . . Level 4 . | . . . Level 5 . | . . . High Security . | . . . Max Security . | . . . Squads Dispatched . | . . . Investigation . | . . . Extermination . | . . . Reinforcement . | . . . Assault . | . . . Garrison . | . . . Intercept . | . . . Searches Triggered . | . . . Construction Impeded . | . . . Haulers Reinforced . | . . . Active Scanning Responses . | . . . Cargo Convoy Interrupts . | . . . Stealth | -11 -10 -10 --------- Run | Scr Mat Min Distress Signals . | . . . Communications Jammed . | . . . Distress Signals . | . . . Times Spotted 20 | . 2 18 Peak Tracking Total 8 | . 2 8 Tactical Retreats . | . . . Traps | -11 -10 -10 ------- Run | Scr Mat Min Traps Triggered . | . . . Indirectly . | . . . Trap Hack Attempts . | . . . Triggered . | . . . Disarmed . | . . . Reprogrammed . | . . . Reused . | . . . Traps Extracted . | . . . Installed . | . . . Triggered . | . . . Machines | -11 -10 -10 ---------- Run | Scr Mat Min Machines Disabled 1 | . . 1 Max in Single Turn 1 | . . 1 Machines Sabotaged . | . . . Garrisons Compromised . | . . . Overloaded Fab Kills . | . . . Hacking | -11 -10 -10 --------- Run | Scr Mat Min Machines Accessed . | . . . Terminals . | . . . Fabricators . | . . . Repair Stations . | . . . Recycling Units . | . . . Scanalyzers . | . . . Garrison Access . | . . . Total Hacks . | . . . Successful . | . . . Failed . | . . . Catastrophic . | . . . Database Lockouts . | . . . Manual . | . . . Terminals . | . . . Fabricators . | . . . Repair Stations . | . . . Recycling Units . | . . . Scanalyzers . | . . . Garrison Access . | . . . Terminal Hacks . | . . . Fabricator Hacks . | . . . Repair Station Hacks . | . . . Recycling Unit Hacks . | . . . Scanalyzer . | . . . Garrison Access Hacks . | . . . Unauthorized Hacks . | . . . Terminals . | . . . Fabricators . | . . . Repair Stations . | . . . Recycling Units . | . . . Scanalyzers . | . . . Garrison Access . | . . . Data Cores Recovered . | . . . Used . | . . . Hacking Detections . | . . . Full Trace Events . | . . . Feedback Events . | . . . Feedback Blocked . | . . . Robot Schematics Acquired . | . . . Robots Built . | . . . Authchips . | . . . Time . | . . . Total Robot Build Rating . | . . . Part Schematics Acquired . | . . . Parts Built . | . . . Authchips . | . . . Time . | . . . Total Part Build Rating . | . . . Parts Repaired . | . . . Time . | . . . Parts Recycled . | . . . Recycled Matter . | . . . Retrieved Matter . | . . . Retrieved Components . | . . . Parts Scanalyzed . | . . . Part Schematics Acquired . | . . . Parts Damaged . | . . . Bothacking | -11 -10 -10 ------------ Run | Scr Mat Min Used RIF Installer . | . . . Robots Hacked . | . . . Non-combat . | . . . Combat . | . . . Robot Hacks Applied . | . . . Relay Couplers Released . | . . . Fabnet Peak Effective % . | . . . Robots Rewired . | . . . Allies Hacked . | . . . Hacks Repelled . | . . . Allies | -11 -10 -10 -------- Run | Scr Mat Min Total Allies . | . . . Largest Group . | . . . Highest-Rated Group . | . . . Highest-Rated Ally . | . . . Total Orders . | . . . Ally Attacks . | . . . Total Damage . | . . . Kills . | . . . Allies Corrupted . | . . . Allies Melted . | . . . Intel | -11 -10 -10 ------- Run | Scr Mat Min Robot Analysis Total . | . . . Derelict Logs Recovered 2 | . . 2 Drone Launches . | . . . Drone Recoveries . | . . . Exploration | -11 -10 -10 ------------- Run | Scr Mat Min Turns Passed 732 | 46 177 509 Spaces Moved 484 | 39 139 306 Core 12 | 12 . . Treads . | . . . Legs 472 | 27 139 306 Wheels . | . . . Hover . | . . . Flight . | . . . Fastest Speed 50 | 50 120 120 Average Speed 127 | 98 120 134 Slowest Speed 190 | 120 120 190 Overloaded Moves . | . . . Propulsion Burnouts . | . . . Robots Hopped . | . . . Cave-ins Triggered . | . . . Exploration Rate (%) 31 | 4 27 62 Regions Visited 2 Branch Regions 1 Pre-discovered Areas 1 | . . 1 Known Exits Taken . | . . . Unknown Exits Taken 2 | 1 1 . Scrap Searched 1 | . . 1 Spaces Dug . | . . . Terrain Destroyed 74 | . . 74 Melee . | . . . Projectile . | . . . AOE 74 | . . 74 Terrain Rammed . | . . . Walls Destroyed . | . . . Machines Disabled . | . . . Actions | -11 -10 -10 --------- Run | Scr Mat Min Total 557 | 44 147 366 Wait 18 | . . 18 Move 482 | 38 138 306 Hop . | . . . Pick Up 12 | 1 7 4 Fast Attach 7 | 5 1 1 Attach 1 | . . 1 Detach 1 | . . 1 Swap 3 | . . 3 Drop 4 | . . 4 Fire 28 | . 1 27 Melee . | . . . Ram . | . . . Kick 1 | . . 1 Crush . | . . . Escape Stasis . | . . . Rewire . | . . . Trap . | . . . Miscellaneous . | . . . Route ------- -11/Scrapyard -10/Materials -10/Mines (discovered 2 exits: [*Mat x2]) History --------- Turn | Location | Event 3 | -11/Scrapyard | Discovered new exit (range 16) 47 | -11/Scrapyard | Entered Materials 216 | -10/Materials | Discovered new exit (range 7) 224 | -10/Materials | Entered Mines 287 | -10/Mines | A weapon hastily lodged in a ceiling crevice suddenly fell to the ground 293 | -10/Mines | Assembled infested the area 321 | -10/Mines | Build established: Mutant 336 | -10/Mines | Destroyed 8 combat bots 353 | -10/Mines | Discovered new exit (range 8) 425 | -10/Mines | Received a Rocket Launcher from a helpful Derelict 437 | -10/Mines | Learned Materials stockpile data 459 | -10/Mines | Discovered new exit (range 9) 584 | -10/Mines | Core integrity fell below 50% 590 | -10/Mines | Core integrity fell below 20% 733 | -10/Mines | Destroyed by as-95324 with Assembled Blade Last Messages --------------- 00496_ Acquired Lgt. Assault Rifle. 00499_ Acquired 10 matter. 00503_ Dropped Lgt. Assault Rifle. 00505_ Acquired Flight Unit. 00508_ Acquired 14 matter. 00512_ Acquired derelict log, extracted data. World map updated: -10/Materials. 00587_ Aluminum Leg destroyed. 00589_ D-53 Grenadier destroyed. 00589_ T-07 Excavator destroyed. 00589_ U-05 Engineer lays Concrete. 00590_ U-05 Engineer builds a Wall. 00593_ The unstable cave ceiling collapses. 00594_ Acquired 46 matter. 00611_ Acquired 26 matter. 00686_ Acquired 2 matter. 00708_ as-78788 destroyed. 00710_ Acquired 7 matter. 00711_ U-05 Engineer lays Concrete. 00714_ Extracted 3 matter. Map ----- +----------------------------------------------------+ | | | ????????????????????????????????????????????? | | ????????????????????????????????????????????? | | ????????????????????????????????????????????? | | ????????????????????????????????????????????? | | ????????????????????????????????????????????? | | ????????????????????????????????????????????? | | ????????????????????????????????????????????? | | ????????????????????????????????????????????? | | ????????????????????????????????????????????? | | ????????????????????????????????????????????? | | ????????????????????????????????????????????? | | ????????????????????????????????????????????? | | ????????????????????????????????????????????? | | ?????????????????????????????? ?????????????? | | ???????? ??????????????????? ???????????? | | ???????? ??????????????????# ???????????? | | ??????? ???????????????## ???????????? | | ???????? ??????????????# ???????????? | | ?????????? ????????????## ???????????? | | ??????????? ??????????## ???????????? | | ???????????? ######???# ???????????# | | ????????????? ##??# ????######## | | ????????????? ?? =% #???# #????# | | ?????????????? ???#a# #????# ##???# ##### | | ??????????????? ####@# #?????# ###?# #???## | | ???????????????### #%# #??????# ### ###### | | ???????????????## ##*# ##????## | | ???????????????## #%# ##??## ######## | | ??????????????## # #!# #### #???????? | | ??????????????# #!### ????????? | | ??????????????## # # % % = ##### ##???? | | ?????????###?#### # # # #???? | | ???????### ## # #%# # #??? | | ???????# #=# # ### #??? | | ???????# ### #####%[ ##??? #?? | | ???????## #?# #???# #####????? #? | | ????????## #?#%#???# #?????????? ? ? | | ?????????# ### #####! #??????????? ?? | | ????????## = % #????????????###? | | ????????# [!*% #???????????????? | | ????????# !=%############???????????????? | | ????????# !%!##?????????????????????????? | | ????????## * %#????????????#####????????? | | ?????????## ! #???????????## ##???????? | | ??????????## % #?????????### ##??????? | | ???????????# #####????## ######## | | ???????????# #???## | | ???????????# ### #??## | | ???????????## #?# #??# ##### | +----------------------------------------------------+ Best States ------------- Heat Dissipation 25 Energy Generation 5 Energy Capacity 100 Matter Stores 300 Matter Capacity 300 Sight Range 16 Terrain Scan Density 10 Armor Coverage 150 Evasion (%) 55 Item Schematics ----------------- None Robot Schematics ------------------ None Fabricated ------------ Nothing Alien Tech Used ----------------- None Achievements -------------- None Challenges ------------ None Game ------ Seed ChargeFrostInverter Manual? 0 Play Time 00:04:41 Cumulative 328.8 hours Start 2022.06.13 @ 15:49:39 End 2022.06.13 @ 15:54:43 Sessions 1 Manual Loads 0 Difficulty Rogue Special Mode None Game No. 583 Rogue 428 Adventurer 148 Explorer 7 Win Type - Total 11 Types 9/0/1/1/0/0/0/0/0 Lore% 74 Gallery% 87 Achievement% 67 Wizard Run 0 Options --------- ASCII 0 Keyboard 0 Movement Numpad Keybinds 0 Fullscreen 1 Font 18/SmallcapsGlow Map View 76x50 Tactical HUD 1 Map Filters NONE Filters NONE Steam 1 RUN: 82c9e199-21ae-4370-b3ff-03de3438ea97